bitfinex/quotes_ETHUSD_20250822
["timestamp","ask_amount","ask_price","bid_price","bid_amount"]
[1755895809050,7.8677,4849.5,4848.8,0.02]
[1755895809375,19.7843962,4849.5,4848.8,0.02]
[1755895809573,23.5873962,4849.5,4848.8,0.02]
[1755895812446,23.5873962,4849.5,4849.3,0.001]
[1755895812858,1.5064,4849.5,4849.3,0.001]
[1755895813059,5.3094,4849.5,4849.3,0.001]
[1755895814396,33.5873962,4849.5,4849.3,0.001]
[1755895814775,33.5873962,4849.5,4848.8,0.02]
[1755895814992,15.9379962,4848.9,4848.8,0.02]
[1755895815307,24.8636962,4848.9,4848.8,0.02]
[1755895815598,25.3053962,4848.9,4848.8,0.02]
[1755895815894,25.3053962,4848.9,4846.8,0.02]
[1755895815895,0.66,4848.6,4846.8,0.02]
[1755895816101,3.66,4847.8,4846.8,0.02]
[1755895816285,16.3426962,4846.9,4846.8,0.02]
[1755895816590,20.1466962,4846.9,4846.8,0.02]
[1755895816804,20.6710802,4846.9,4846.8,0.02]
[1755895817302,20.5678802,4846.9,4846.8,0.02]
[1755895818600,30.72481778,4846.9,4846.8,0.02]
[1755895820296,11.044184,4846.9,4846.8,0.02]
[1755895820508,29.99005939,4846.9,4846.8,0.02]
[1755895820669,30.73274039,4846.9,4846.8,0.02]
[1755895820864,11.65074419,4846.9,4846.8,0.02]
[1755895821077,14.92056319,4846.9,4846.8,0.02]
[1755895821268,15.37206319,4846.9,4846.8,0.02]
[1755895822583,14.92056319,4846.9,4846.8,0.02]
[1755895823095,14.7655,4846.9,4846.8,0.02]
[1755895823289,14.465,4846.9,4846.8,0.02]
[1755895824183,14.464,4846.9,4846.8,0.02]
[1755895825269,10.0,4847.1,4846.8,0.7778]
[1755895825506,3.804,4847.0,4846.8,0.7778]
[1755895825698,0.66,4846.9,4846.8,0.3196]
[1755895826267,0.66,4846.9,4846.8,0.7778]
[1755895826579,10.66,4846.9,4846.8,0.7778]
[1755895826776,10.0,4846.9,4846.8,0.7778]
[1755895826993,13.9072,4846.9,4846.8,0.7778]
[1755895827392,3.9072,4846.9,4846.8,0.7778]
[1755895827791,4.5672,4846.9,4846.8,0.7778]
[1755895831804,10.0,4847.6,4846.8,0.7778]
[1755895831985,10.0,4847.6,4847.3,0.1032]
[1755895832181,10.0,4847.6,4847.4,0.4582]
[1755895832384,1.718,4847.7,4847.5,0.2996]
[1755895832586,1.718,4847.7,4847.6,0.4582]
[1755895832787,5.521,4847.7,4847.6,0.7578]
[1755895832985,5.521,4847.7,4847.6,0.861]
[1755895834712,5.521,4847.7,4847.6,0.2996]
[1755895834897,0.66,4847.6,4846.8,0.02]
[1755895835097,0.7632,4847.6,4847.5,0.2996]
[1755895835299,4.5652,4847.6,4847.5,0.2996]
[1755895836591,4.5652,4847.6,4847.0,0.4582]
[1755895837114,4.5652,4847.6,4846.9,0.1032]
[1755895837312,4.462,4847.6,4846.8,0.02]
[1755895837615,0.66,4847.0,4846.8,0.02]
[1755895837818,4.462,4846.9,4846.8,0.02]
[1755895838584,0.1032,4847.1,4846.8,0.7778]
[1755895838787,3.801,4847.0,4846.9,0.4582]
[1755895839004,3.801,4847.0,4846.9,0.5614]
[1755895839408,3.801,4847.0,4846.9,0.861]
[1755895842584,0.66,4847.6,4846.9,0.861]
[1755895842811,1.718,4847.7,4846.9,0.861]
[1755895842812,3.8,4847.5,4847.0,0.4582]
[1755895842993,3.8,4847.5,4847.4,0.2996]
[1755895843316,3.8,4847.5,4847.4,0.7578]
[1755895843522,3.8,4847.5,4847.4,0.861]
[1755895844390,3.8,4847.5,4847.4,0.4028]
[1755895844591,4.46,4847.5,4847.4,0.1032]
[1755895844890,0.66,4847.4,4847.2,0.1032]
[1755895845098,0.66,4847.6,4847.3,0.4582]
[1755895845303,4.459,4847.5,4847.4,0.7578]
[1755895846320,4.459,4847.5,4847.4,0.2996]
[1755895847823,0.66,4847.4,4847.2,0.1032]
[1755895847994,0.3991,4847.3,4846.8,0.02]
[1755895848316,0.66,4847.1,4846.8,0.02]
[1755895848506,0.9589,4846.9,4846.8,0.02]
[1755895848709,4.8601,4846.9,4846.8,0.02]
[1755895851824,4.5612,4846.9,4846.8,0.02]
[1755895854122,4.8601,4846.9,4846.8,0.02]
[1755895856507,5.3263,4846.9,4846.8,0.02]
[1755895857309,4.8601,4846.9,4846.8,0.02]
[1755895857523,10.5921,4846.9,4846.8,0.02]
[1755895858439,20.5921,4846.9,4846.8,0.02]
[1755895858640,16.7941,4846.9,4846.8,0.02]
[1755895858809,20.5891,4846.9,4846.8,0.02]
[1755895859900,16.7941,4846.9,4846.8,0.02]
[1755895860106,19.4629,4846.9,4846.8,0.02]
[1755895860303,9.4629,4846.9,4846.8,0.02]
[1755895860803,10.1229,4846.9,4846.8,0.02]
[1755895861005,10.0,4847.4,4846.8,0.3296]
[1755895861348,1.718,4847.7,4846.8,0.7807]
[1755895861349,3.795,4847.3,4846.8,0.7807]
[1755895861509,1.718,4847.7,4846.9,0.4511]
[1755895861510,3.795,4847.2,4846.9,0.4511]
[1755895861857,3.795,4847.1,4846.8,1.49201986]
[1755895862149,3.795,4847.0,4846.9,0.4511]
[1755895862446,3.794,4847.0,4846.9,0.7607]
[1755895862620,1.718,4847.7,4846.9,2.23271986]
[1755895862805,1.718,4847.7,4846.9,1.78161986]
[1755895862806,3.794,4847.6,4846.9,1.78161986]
[1755895863001,3.794,4847.6,4847.0,0.4511]
[1755895863200,3.794,4847.6,4847.5,0.3096]
[1755895863907,4.454,4847.6,4847.5,0.3096]
[1755895864631,4.454,4847.6,4847.5,0.7607]
[1755895865032,4.454,4847.6,4847.5,0.3096]
[1755895865406,4.454,4847.6,4847.5,0.7607]
[1755895867836,0.66,4847.5,4847.0,1.47201986]
[1755895868152,0.66,4847.0,4846.8,0.021]
[1755895868438,4.452,4846.9,4846.8,0.021]
[1755895868812,4.452,4846.9,4846.8,0.3306]
[1755895869012,4.327,4846.9,4846.8,0.3306]
[1755895869515,4.327,4846.9,4846.8,0.021]
[1755895870138,4.6259,4846.9,4846.8,0.021]
[1755895870333,4.7291,4846.9,4846.8,0.021]
[1755895872830,5.0921,4846.9,4846.8,0.021]
[1755895873332,4.45,4846.9,4846.8,0.3306]
[1755895873734,4.45,4846.9,4846.8,0.021]
[1755895873939,4.45,4846.9,4846.8,0.3306]
[1755895874136,4.45,4846.9,4846.8,0.021]
[1755895874341,4.449,4846.9,4846.8,0.3306]
[1755895875057,4.449,4846.9,4846.8,0.7817]
[1755895875360,3.789,4846.9,4846.8,0.7817]
[1755895876025,3.789,4846.9,4846.8,2.25371986]
[1755895876493,3.789,4846.9,4846.8,0.7817]
[1755895876679,0.002,4847.8,4846.8,0.80233216]
[1755895876960,3.789,4847.7,4847.6,1.84834767]
[1755895877172,3.789,4847.7,4847.6,2.15794767]
[1755895877328,3.789,4847.7,4847.6,0.7607]
[1755895877835,3.789,4847.7,4847.6,2.60904767]
[1755895878363,3.789,4847.7,4847.6,0.7607]
[1755895882975,3.789,4847.7,4847.6,5.1239]
[1755895886187,0.002,4848.3,4847.7,16.530483]
[1755895886341,3.784,4849.6,4848.2,0.2913]
[1755895886535,3.784,4849.6,4848.7,15.2779962]
[1755895886740,3.784,4849.6,4848.7,15.5692962]
[1755895887039,3.784,4849.6,4848.7,16.0068962]
[1755895887245,3.784,4849.6,4848.7,16.81784048]
[1755895887475,3.784,4849.6,4848.8,0.19158028]
[1755895887634,3.784,4849.6,4849.5,0.2913]
[1755895887865,1.717,4850.5,4849.5,0.92048028]
[1755895888089,3.803,4849.8,4849.6,0.64980053]
[1755895888292,3.803,4849.8,4849.7,0.92048028]
[1755895888812,0.02,4849.8,4849.7,0.92048028]
[1755895891081,0.02,4849.8,4849.7,1.07207889]
[1755895892587,0.02,4849.8,4849.7,4.85307889]
[1755895895205,0.02,4849.8,4849.7,4.85234619]
[1755895895781,0.022,4849.8,4849.7,4.85234619]
[1755895895982,0.022,4849.8,4849.7,4.95554619]
[1755895896589,0.022,4849.8,4849.7,5.03810519]
[1755895896802,0.022,4849.8,4849.7,1.25710519]
[1755895897116,0.002,4850.3,4849.7,9.29410519]
[1755895897281,0.002,4850.3,4849.8,3.96784758]
[1755895897481,0.002,4850.3,4849.9,0.19084758]
[1755895897689,0.002,4850.3,4850.0,0.19084758]
[1755895897980,0.002,4850.3,4849.8,4.2146]
[1755895897981,0.002,4850.3,4850.1,0.19084758]
[1755895898283,0.002,4850.3,4850.2,0.29384968]
[1755895898910,0.002,4850.3,4850.2,0.37641268]
[1755895899518,0.7879,4850.3,4850.2,0.29384968]
[1755895900481,0.3153,4850.3,4850.2,0.29384968]
[1755895900879,0.7879,4850.3,4850.2,0.29384968]
[1755895901318,0.7879,4850.3,4850.2,0.2939514]
[1755895902011,0.3153,4850.3,4850.2,0.2939514]
[1755895902218,0.002,4850.3,4850.2,5.1796514]
[1755895902421,0.002,4850.3,4850.2,8.1346514]
[1755895902717,0.002,4852.4,4850.9,1.899]
[1755895902920,0.002,4852.4,4851.7,16.8082962]
[1755895903118,0.002,4852.4,4851.7,21.2500476]
[1755895903278,0.002,4852.4,4851.7,6.56736225]
[1755895903482,0.002,4852.4,4851.7,2.35576225]
[1755895903709,0.002,4852.4,4851.7,0.72229525]
[1755895904043,0.002,4852.4,4851.8,1.239]
[1755895904227,0.002,4852.4,4852.1,16.5169962]
[1755895904392,0.002,4852.4,4852.1,16.99873734]
[1755895904785,0.002,4852.4,4852.1,17.43633734]
[1755895905621,0.002,4852.4,4852.1,21.20933734]
[1755895906311,0.002,4852.4,4852.1,4.25374114]
[1755895907018,0.3153,4852.2,4852.1,0.19044114]
[1755895907380,0.3153,4852.2,4852.1,0.50231507]
[1755895907381,0.002,4852.2,4852.1,0.50231507]
[1755895907587,0.002,4852.4,4852.1,0.48170544]
[1755895907787,0.002,4852.4,4852.2,0.19040544]
[1755895908107,0.002,4852.4,4852.3,0.19040544]
[1755895908309,2.378,4852.4,4852.3,0.19040544]
[1755895908485,3.1058,4852.4,4852.3,0.19040544]
[1755895911200,0.7298,4852.4,4852.3,0.19040544]
[1755895911418,0.002,4852.4,4852.3,0.19040544]
[1755895911735,0.3011,4852.4,4852.3,0.19040544]
[1755895912031,3.1058,4852.4,4852.3,0.19040544]
[1755895913333,0.66,4852.3,4852.1,0.001]
[1755895913515,1.0887,4852.3,4852.2,0.19084058]
[1755895913714,1.3878,4852.3,4852.2,0.19084058]
[1755895913889,1.3878,4852.3,4852.2,0.19089766]
[1755895914311,0.2991,4852.3,4852.2,0.19089766]
[1755895914496,1.718,4852.4,4852.2,0.29409766]
[1755895914707,1.718,4852.4,4852.3,0.19089766]
[1755895914923,2.0171,4852.4,4852.3,0.19089766]
[1755895915985,1.718,4852.4,4852.3,0.19089766]
[1755895917901,2.0171,4852.4,4852.3,0.19089766]
[1755895918429,1.718,4852.4,4852.3,0.29409766]
[1755895918996,2.0171,4852.4,4852.3,0.29409766]
[1755895919339,2.4458,4852.4,4852.3,0.29441379]
[1755895920696,3.1058,4852.4,4852.3,0.19121379]
[1755895921497,15.9379962,4852.3,4851.6,0.001]
[1755895921695,15.9379962,4852.3,4850.2,0.1032]
[1755895921696,0.66,4851.6,4850.2,0.1032]
[1755895922002,0.9591,4850.9,4850.2,0.1032]
[1755895922202,4.7241,4850.9,4848.4,0.4338]
[1755895922416,5.256,4850.9,4849.7,0.1032]
[1755895922843,1.491,4850.9,4849.7,0.1032]
[1755895922996,5.1528,4850.9,4850.3,0.1032]
[1755895923196,5.1528,4850.9,4849.9,0.1032]
[1755895923629,5.1528,4850.9,4848.4,0.15352856]
[1755895923826,5.1528,4850.9,4848.7,0.1032]
[1755895924421,11.491,4850.9,4849.1,0.1032]
[1755895924632,15.255,4850.9,4849.1,0.1032]
[1755895925339,11.491,4850.9,4849.1,0.1032]
[1755895925555,15.255,4850.9,4848.9,0.4338]
[1755895925768,15.255,4850.9,4849.4,0.1032]
[1755895926326,5.255,4850.9,4849.4,0.1032]
[1755895926527,1.491,4850.9,4847.8,0.021]
[1755895926726,5.254,4850.9,4849.2,0.1032]
[1755895926962,5.254,4850.9,4849.8,0.021]
[1755895927322,15.254,4850.9,4849.8,0.021]
[1755895927929,0.66,4850.4,4849.2,0.1032]
[1755895928128,3.66,4849.2,4847.8,0.021]
[1755895928338,3.66,4849.2,4845.8,0.021]
[1755895928339,0.66,4847.8,4845.8,0.021]
[1755895928538,16.3402962,4846.9,4845.8,0.021]
[1755895928834,25.4672962,4846.9,4845.8,0.021]
[1755895929028,25.8959962,4846.9,4845.8,0.021]
[1755895929230,0.66,4846.8,4845.8,0.021]
[1755895929473,0.66,4846.3,4845.8,0.021]
[1755895929632,0.66,4845.8,4843.7,0.1032]
[1755895929829,0.66,4845.3,4843.7,0.1032]
[1755895930035,16.3402962,4844.9,4842.9,0.1032]
[1755895930232,0.66,4844.8,4842.7,0.4348]
[1755895930467,0.7632,4843.9,4842.8,0.1232]
[1755895930656,6.139,4843.9,4843.2,0.4338]
[1755895930850,6.139,4843.9,4843.6,0.1042]
[1755895931380,6.2422,4843.9,4843.6,0.001]
[1755895932375,0.1032,4844.0,4843.8,0.7609]
[1755895932540,3.762,4844.2,4844.0,0.1032]
[1755895932744,0.66,4844.1,4843.8,0.02]
[1755895933160,0.7632,4844.1,4843.8,0.02]
[1755895933672,0.1032,4844.1,4843.8,0.02]
[1755895933893,0.1032,4844.1,4844.0,0.3071]
[1755895934055,3.8662,4844.1,4844.0,0.3071]
[1755895934245,3.763,4844.1,4844.0,0.3071]
[1755895934884,3.763,4844.1,4843.9,0.1032]
[1755895935089,0.7632,4844.6,4844.0,0.7409]
[1755895935447,4.423,4844.5,4844.0,0.3071]
[1755895935849,0.66,4844.3,4844.1,0.4338]
[1755895936088,0.66,4844.3,4843.9,0.1032]
[1755895936390,0.66,4844.3,4844.1,0.4338]
[1755895936591,0.66,4844.5,4844.2,0.3071]
[1755895936788,0.66,4844.3,4844.2,0.7409]
[1755895936989,0.66,4844.3,4844.2,0.3071]
[1755895937166,0.66,4844.3,4843.9,0.1032]
[1755895937851,0.66,4844.3,4843.9,0.537]
[1755895938401,0.66,4844.5,4844.2,0.3023]
[1755895938693,0.9477,4844.3,4843.9,0.1032]
[1755895938895,0.66,4844.1,4843.8,0.02]
[1755895939196,0.9477,4843.9,4843.8,0.02]
[1755895939898,1.3834,4843.9,4843.8,0.02]
[1755895940196,0.9477,4843.9,4843.8,0.02]
[1755895940356,28.5385641,4843.9,4843.6,0.001]
[1755895940575,0.66,4843.7,4843.6,0.001]
[1755895940898,4.7107,4843.7,4843.6,0.001]
[1755895941223,5.1464,4843.7,4843.6,0.001]
[1755895941388,8.2864,4843.7,4843.6,0.001]
[1755895941791,4.5234,4843.7,4843.6,0.001]
[1755895941974,8.2864,4843.7,4843.6,0.001]
[1755895942175,10.4604,4843.7,4840.3,0.4411]
[1755895942420,0.66,4843.0,4840.3,0.4411]
[1755895942613,0.66,4843.0,4840.1,0.10163862]
[1755895942614,6.4297,4842.9,4842.6,0.001]
[1755895942913,6.8654,4842.9,4842.6,0.001]
[1755895943712,3.1014,4842.9,4842.6,0.001]
[1755895943892,6.8654,4842.9,4842.6,0.001]
[1755895944482,0.66,4842.8,4840.8,0.021]
[1755895944715,0.9477,4841.9,4840.8,0.021]
[1755895944886,6.4297,4841.9,4840.8,0.021]
[1755895945087,6.142,4841.9,4840.9,0.4411]
[1755895945487,2.379,4841.9,4840.9,0.4411]
[1755895945715,6.143,4841.9,4840.9,0.4411]
[1755895946582,6.4307,4841.9,4840.8,0.021]
[1755895947013,6.143,4841.9,4840.8,0.4621]
[1755895947580,2.379,4841.9,4840.8,0.4621]
[1755895947813,6.142,4841.9,4841.3,0.4421]
[1755895948038,5.482,4841.9,4841.8,0.7644]
[1755895948240,1.719,4841.9,4841.8,0.7644]
[1755895948426,5.483,4841.9,4841.8,0.7644]
[1755895948844,6.143,4841.9,4841.8,0.7644]
[1755895949044,6.4307,4841.9,4841.8,0.021]
[1755895949425,6.8664,4841.9,4841.8,0.021]
[1755895949744,6.4307,4841.9,4841.8,0.021]
[1755895951435,16.4307,4841.9,4841.8,0.021]
[1755895952244,15.482,4841.9,4841.8,0.021]
[1755895952542,5.482,4841.9,4841.8,0.3233]
[1755895952739,5.482,4841.9,4841.8,0.021]
[1755895953036,6.6299,4841.9,4841.8,0.021]
[1755895953242,6.4297,4841.9,4841.8,0.021]
[1755895953533,6.142,4841.9,4841.8,0.021]
[1755895954234,6.4297,4841.9,4841.8,0.021]
[1755895954406,6.142,4841.9,4841.8,0.021]
[1755895954609,2.379,4841.9,4841.8,0.021]
[1755895954810,6.142,4841.9,4841.8,0.021]
[1755895955104,6.4297,4841.9,4841.8,0.021]
[1755895955707,2.6667,4841.9,4841.8,0.021]
[1755895955913,6.4297,4841.9,4841.8,0.021]
[1755895956114,6.8654,4841.9,4841.8,0.021]
[1755895956450,16.8654,4841.9,4841.8,0.021]
[1755895956769,22.2404,4841.9,4841.8,0.021]
[1755895957448,0.66,4841.8,4841.3,0.001]
[1755895957617,0.2877,4841.4,4841.3,0.001]
[1755895957817,4.422,4841.4,4841.3,0.001]
[1755895958338,14.7097,4841.4,4841.3,0.001]
[1755895958509,15.1454,4841.4,4841.3,0.001]
[1755895959266,15.2486,4841.4,4841.3,0.001]
[1755895960315,16.00489336,4840.9,4840.8,0.021]
[1755895960515,21.77459336,4840.9,4840.8,0.021]
[1755895960845,22.31349336,4840.9,4840.8,0.021]
[1755895961531,32.31349336,4840.9,4840.8,0.021]
[1755895965172,32.31249336,4840.9,4840.8,0.021]
[1755895965538,28.11579336,4840.9,4840.8,0.021]
[1755895965842,31.87679336,4840.9,4840.8,0.021]
[1755895966439,32.31249336,4840.9,4840.8,0.021]
[1755895967156,12.1109,4840.9,4840.8,0.021]
[1755895967351,11.72,4840.9,4840.8,0.7644]
[1755895967553,15.481,4840.9,4840.8,0.7644]
[1755895968139,15.48,4840.9,4840.8,0.7644]
[1755895968471,5.48,4840.9,4840.8,0.7644]
[1755895968838,6.14,4840.9,4840.8,0.7644]
[1755895969044,6.14,4840.9,4840.8,0.3233]
[1755895969373,6.14,4840.9,4840.8,0.767]
[1755895970375,6.14,4840.9,4840.8,0.3233]
[1755895971548,6.14,4840.9,4840.8,0.767]
[1755895971945,2.38,4840.9,4840.8,0.767]
[1755895972354,6.139,4840.9,4840.8,0.767]
[1755895972764,6.139,4840.9,4840.8,0.021]
[1755895973261,6.3392,4840.9,4840.8,0.021]
[1755895973461,16.139,4840.9,4840.8,0.021]
[1755895973648,16.139,4840.9,4840.8,0.7687]
[1755895973851,16.139,4840.9,4840.8,0.325]
[1755895974046,16.139,4840.9,4840.8,0.021]
[1755895974239,12.38,4840.9,4840.8,0.021]
[1755895974441,16.139,4840.9,4840.8,0.021]
[1755895974974,16.139,4840.9,4840.8,0.325]
[1755895975478,2.38,4840.9,4840.8,0.7687]
[1755895975646,6.138,4840.9,4840.8,0.7687]
[1755895975840,2.38,4840.9,4840.8,0.7687]
[1755895976045,6.138,4840.9,4840.8,0.7687]
[1755895976379,6.138,4840.9,4840.8,0.021]
[1755895977272,6.2412,4840.9,4840.8,0.021]
[1755895977475,12.4832,4840.9,4840.8,0.021]
[1755895977777,16.2402,4840.9,4840.8,0.325]
[1755895977949,16.2402,4840.9,4840.8,0.021]
[1755895978365,6.2402,4840.9,4840.8,0.021]
[1755895978873,6.2402,4840.9,4840.8,0.325]
[1755895979366,2.4832,4840.9,4840.8,0.7687]
[1755895979780,6.137,4840.9,4840.8,0.7687]
[1755895980603,6.136,4840.9,4840.8,0.7687]
[1755895980966,2.38,4840.9,4840.8,0.7687]
[1755895981172,6.136,4840.9,4840.8,0.7687]
[1755895982688,2.38,4840.9,4840.8,0.7687]
[1755895982898,6.135,4840.9,4840.8,0.7687]
[1755895983393,6.135,4840.9,4840.8,0.021]
[1755895983781,2.38,4840.9,4840.8,0.021]
[1755895983986,6.135,4840.9,4840.8,0.7687]
[1755895984300,2.38,4840.9,4840.8,0.7687]
[1755895984491,6.135,4840.9,4840.8,0.7687]
[1755895986790,2.38,4840.9,4840.8,0.7687]
[1755895987116,6.134,4840.9,4840.8,0.7687]
[1755895988017,6.134,4840.9,4840.8,0.325]
[1755895988218,6.134,4840.9,4840.8,0.021]
[1755895988795,6.133,4840.9,4840.8,0.325]
[1755895989858,10.0,4841.4,4840.8,0.7687]
[1755895989997,8.9256,4841.4,4841.3,15.34489336]
[1755895990205,5.88573035,4841.4,4841.3,17.17353104]
[1755895990417,3.754,4841.8,4841.3,17.17353104]
[1755895990638,3.754,4841.8,4841.2,1.82863768]
[1755895990923,0.002,4841.8,4841.3,17.19418664]
[1755895991094,0.002,4841.8,4841.6,1.82863768]
[1755895991296,3.752,4841.7,4841.5,1.82863768]
[1755895991737,3.752,4841.7,4841.0,1.82863768]
[1755895991916,0.66,4841.6,4840.8,0.021]
[1755895992139,0.66,4841.4,4840.8,0.021]
[1755895992295,3.752,4841.3,4840.8,0.021]
[1755895992927,0.66,4841.2,4840.8,0.021]
[1755895993240,0.66,4841.0,4840.8,0.021]
[1755895993420,3.751,4840.9,4840.8,0.021]
[1755895994348,4.411,4840.9,4840.8,0.021]
[1755895994928,3.751,4840.9,4840.8,0.021]
[1755895995529,3.75,4840.9,4840.8,0.021]
[1755895999218,0.002,4841.3,4840.8,0.021]
[1755895999418,0.002,4841.3,4840.9,0.02065731]
[1755895999624,3.748,4841.2,4840.9,0.02065731]
[1755895999999,3.748,4841.2,4840.8,0.021]
[1755896000000,3.748,4841.2,4841.1,0.1032]
[1755896000414,4.408,4841.2,4841.1,0.1032]
[1755896000624,5.1687,4841.2,4841.1,0.1032]
[1755896001037,5.1687,4841.2,4840.8,0.021]
[1755896001239,5.1687,4841.2,4840.9,0.1032]
[1755896002149,1.1072,4841.1,4840.8,0.021]
[1755896002749,0.9735,4840.9,4840.8,0.021]
[1755896003044,4.7205,4840.9,4840.8,0.021]
[1755896003251,5.1677,4840.9,4840.8,0.021]
[1755896004918,5.2709,4840.9,4840.3,0.001]
[1755896005119,0.7632,4840.4,4840.3,0.001]
[1755896005431,6.5427,4840.4,4840.3,0.001]
[1755896005753,6.9899,4840.4,4840.3,0.001]
[1755896007552,16.9899,4840.4,4840.3,0.001]
[1755896008165,13.2439,4840.4,4840.3,0.001]
[1755896008463,16.9889,4840.4,4840.3,0.001]
[1755896010537,13.2439,4840.4,4840.3,0.001]
[1755896010739,16.9879,4840.4,4840.3,0.001]
[1755896013357,6.9879,4840.4,4840.3,0.001]
[1755896014350,10.1032,4840.4,4840.3,0.0346]
[1755896014553,0.002,4841.3,4840.3,1.86323768]
[1755896014879,0.002,4841.3,4840.8,15.34489336]
[1755896015373,0.002,4841.3,4840.9,0.02065731]
[1755896015573,0.002,4841.3,4840.8,15.34489336]
[1755896015890,0.002,4841.3,4841.1,1.82863768]
[1755896016462,0.002,4841.3,4841.2,0.082709]
[1755896017353,10.0,4843.9,4841.3,5.524351]
[1755896017553,3.742,4842.9,4841.4,0.23591289]
[1755896017873,3.742,4842.9,4841.6,1.84713021]
[1755896018175,3.742,4842.9,4841.5,1.84713021]
[1755896018469,3.742,4842.9,4841.4,1.84713021]
[1755896019457,3.742,4842.9,4841.3,1.84713021]
[1755896019656,3.742,4842.1,4841.0,1.84713021]
[1755896019854,5.462,4842.1,4840.7,1.84713021]
[1755896020048,5.462,4842.1,4840.8,0.082721]
[1755896020375,5.462,4842.1,4840.5,1.84713021]
[1755896020582,0.022,4842.8,4840.5,1.84713021]
[1755896020583,0.022,4842.8,4841.5,15.34489336]
[1755896020878,0.022,4842.8,4842.2,15.34489336]
[1755896021091,3.762,4844.8,4842.2,23.58039574]
[1755896021385,0.4472,4844.7,4842.4,1.84523379]
[1755896021677,0.4472,4844.7,4842.5,0.19221213]
[1755896021843,0.66,4844.5,4842.6,0.19221213]
[1755896022047,0.66,4844.3,4842.7,0.19221213]
[1755896022259,0.66,4844.3,4842.8,0.19221213]
[1755896022553,0.66,4844.3,4842.9,0.19221213]
[1755896022749,0.66,4844.3,4843.0,0.19221213]
[1755896022950,0.66,4844.1,4843.1,0.19221213]
[1755896023146,0.66,4843.9,4843.2,0.19221213]
[1755896023351,0.022,4844.8,4843.8,15.34489336]
[1755896023551,0.022,4844.8,4844.0,17.19012715]
[1755896023855,0.022,4844.8,4844.1,2.03744592]
[1755896024180,0.022,4844.8,4844.2,0.19221213]
[1755896024377,0.022,4844.8,4844.3,0.19221213]
[1755896024564,0.022,4844.8,4844.4,0.19221213]
[1755896024768,0.022,4844.8,4844.5,0.19221213]
[1755896024964,0.022,4844.8,4844.6,0.19221213]
[1755896025169,0.7607,4844.7,4842.8,0.15285337]
[1755896025500,0.022,4844.8,4843.3,0.02064707]
[1755896025501,5.458,4844.6,4843.3,0.02064707]
[1755896025666,0.66,4844.5,4843.4,0.19153014]
[1755896025993,0.66,4844.1,4843.5,0.29474565]
[1755896026155,0.66,4844.1,4843.6,0.19154565]
[1755896026363,1.72,4844.6,4843.7,0.21219102]
[1755896026566,1.72,4844.6,4844.5,0.1032]
[1755896026915,1.72,4844.6,4844.5,0.29474565]
[1755896028755,1.72,4844.6,4844.5,0.1032]
[1755896028756,2.6839,4844.6,4844.5,0.1032]
[1755896029043,3.1579,4844.6,4844.5,0.19124962]
[1755896029490,3.1579,4844.6,4844.0,0.1032]
[1755896029491,0.66,4844.5,4844.0,0.1032]
[1755896029693,0.66,4844.3,4844.0,0.1032]
[1755896029850,0.66,4844.3,4844.1,0.19118273]
[1755896030058,3.735,4844.2,4844.0,0.1032]
[1755896030250,3.735,4844.2,4844.1,0.19118246]
[1755896031083,0.1032,4844.7,4844.2,6.821902]
[1755896031419,0.022,4844.8,4844.3,18.06590246]
[1755896031615,0.022,4844.8,4844.7,0.1032]
[1755896031769,0.022,4844.8,4844.7,0.29438246]
[1755896032283,0.022,4844.8,4844.7,0.31502357]
[1755896032482,0.002,4845.3,4844.8,11.016273]
[1755896032673,0.002,4845.3,4845.2,0.1032]
[1755896032875,0.002,4845.3,4845.2,13.79385536]
[1755896034395,0.002,4845.3,4845.2,17.52885536]
[1755896034912,0.002,4845.3,4845.2,17.68533663]
[1755896035770,3.733,4847.7,4845.2,17.68533663]
[1755896035771,0.02,4847.8,4845.8,0.5]
[1755896036110,0.02,4847.8,4846.9,1.899]
[1755896036262,0.02,4849.8,4847.7,11.7804729]
[1755896036467,0.02,4849.8,4847.8,6.67133173]
[1755896036696,0.02,4849.8,4847.9,8.74018246]
[1755896036905,0.02,4849.8,4848.0,10.56533173]
[1755896037205,0.02,4849.8,4848.1,9.99060446]
[1755896037500,0.02,4849.8,4848.2,0.19118246]
[1755896037714,0.02,4849.8,4848.3,3.92418246]
[1755896038012,0.02,4849.8,4848.4,0.18968839]
[1755896038220,0.02,4849.8,4848.3,3.88936573]
[1755896038221,0.474,4849.3,4848.5,0.18968839]
[1755896038420,0.474,4849.3,4848.6,0.18968839]
[1755896038625,0.474,4849.3,4848.7,0.18968839]
[1755896038826,0.474,4849.3,4848.7,0.18961927]
[1755896039134,0.474,4849.3,4848.7,0.18961337]
[1755896039313,0.7979,4848.8,4848.7,0.18961337]